bitfinex/quotes_SOLUSD_20250815
["timestamp","ask_amount","ask_price","bid_price","bid_amount"]
[1755244496977,77.25723636,196.82,196.81,0.03]
[1755244500065,107.25723636,196.82,196.81,0.03]
[1755244500265,106.62213831,196.82,196.81,0.03]
[1755244501674,114.61057748,196.82,196.81,0.03]
[1755244504185,97.78632126,196.82,196.81,0.03]
[1755244505186,105.93213831,196.82,196.81,0.03]
[1755244505690,77.59932122,196.82,196.81,0.72]
[1755244505895,78.23441927,196.82,196.81,0.72]
[1755244506188,78.23441927,196.82,196.81,0.03]
[1755244506682,83.31520374,196.82,196.81,0.03]
[1755244507076,53.31520374,196.82,196.81,0.03]
[1755244509009,61.46102079,196.82,196.81,0.03]
[1755244509301,56.38023632,196.82,196.81,0.03]
[1755244509910,48.23441927,196.82,196.81,0.03]
[1755244510102,78.23441927,196.82,196.81,0.03]
[1755244510804,77.59932122,196.82,196.81,8.86581705]
[1755244511609,74.22,196.82,196.81,8.86581705]
[1755244511779,44.22,196.82,196.81,8.86581705]
[1755244512105,35.94,196.82,196.81,8.86581705]
[1755244512303,44.18,196.83,196.81,8.86581705]
[1755244512508,44.18,196.83,196.82,13.91660152]
[1755244512705,8.3,196.84,196.82,13.91660152]
[1755244513002,8.3,196.84,196.83,8.83581705]
[1755244514723,8.3,196.84,196.83,13.91634339]
[1755244515226,0.06,196.84,196.83,13.91634339]
[1755244515809,0.06,196.84,196.83,5.77052634]
[1755244516324,0.06,196.84,196.83,13.91634339]
[1755244517007,8.3,196.84,196.83,13.91634339]
[1755244518327,0.06,196.84,196.83,13.91634339]
[1755244522328,0.06,196.86,196.83,29.02255896]
[1755244522630,0.06,196.88,196.85,8.14581705]
[1755244522833,0.06,196.88,196.87,8.14581705]
[1755244523330,0.06,196.88,196.87,8.83581705]
[1755244523709,0.06,196.88,196.87,13.91531113]
[1755244525520,0.75,196.88,196.87,5.07949408]
[1755244525716,8.24,196.87,196.86,5.07973183]
[1755244526023,8.24,196.83,196.82,5.08078447]
[1755244526433,8.24,196.83,196.82,13.22660152]
[1755244526822,8.24,196.83,196.82,13.91660152]
[1755244527519,8.24,196.84,196.82,13.91660152]
[1755244527723,8.24,196.84,196.83,8.14581705]
[1755244527926,8.24,196.84,196.83,13.22634339]
[1755244530945,8.24,196.86,196.83,13.93634339]
[1755244531245,8.3,196.87,196.85,8.14581705]
[1755244531427,8.3,196.87,196.86,8.14581705]
[1755244531626,38.3,196.87,196.86,8.14581705]
[1755244531830,38.3,196.87,196.86,13.22556915]
[1755244532239,8.3,196.87,196.86,13.22556915]
[1755244533342,9.02,196.87,196.86,5.0797521]
[1755244533549,8.24,196.86,196.85,8.14581705]
[1755244533724,8.96,196.86,196.85,8.14581705]
[1755244533926,8.24,196.86,196.85,13.22582721]
[1755244534118,8.24,196.86,196.85,13.93582721]
[1755244534446,8.24,196.86,196.85,13.22582721]
[1755244535930,0.06,196.87,196.85,13.93582721]
[1755244536142,0.06,196.87,196.86,8.85581705]
[1755244537222,0.06,196.88,196.86,23.96203262]
[1755244537433,0.06,196.88,196.87,8.85581705]
[1755244537939,0.06,196.88,196.87,13.93531113]
[1755244538874,1e-08,196.89,196.87,29.0415267]
[1755244539032,1e-08,196.89,196.88,8.85581705]
[1755244539948,1e-08,196.89,196.88,13.93505313]
[1755244541660,1e-08,196.89,196.88,13.22505313]
[1755244542777,1e-08,196.89,196.88,13.93505313]
[1755244543139,1e-08,196.89,196.88,13.22505313]
[1755244543340,1e-08,196.89,196.88,13.93505313]
[1755244543560,1e-08,196.89,196.88,29.0412687]
[1755244544344,1e-08,196.89,196.88,64.9412687]
[1755244544546,1e-08,196.89,196.88,64.2312687]
[1755244544861,1e-08,196.89,196.88,64.9412687]
[1755244545066,1e-08,196.89,196.88,29.0412687]
[1755244545258,1e-08,196.89,196.88,64.9212687]
[1755244546250,1e-08,196.89,196.88,64.2112687]
[1755244547477,1e-08,196.89,196.88,64.9212687]
[1755244548960,1e-08,196.9,196.89,15.10621557]
[1755244549267,0.06,196.95,196.89,49.96203262]
[1755244549455,0.06,196.95,196.94,8.14581705]
[1755244549456,8.3,196.95,196.94,8.14581705]
[1755244549659,0.06,196.95,196.94,8.14581705]
[1755244549972,0.06,196.95,196.94,13.22350568]
[1755244550558,0.78,196.95,196.94,13.22350568]
[1755244552774,0.06,196.95,196.94,13.22350568]
[1755244554077,0.06,196.95,196.94,13.93350568]
[1755244554448,0.06,196.95,196.94,13.22350568]
[1755244561076,0.06,196.95,196.94,8.14581705]
[1755244562385,0.06,196.95,196.94,44.00581705]
[1755244563507,0.06,196.95,196.94,49.75350568]
[1755244564283,0.06,196.97,196.94,49.75350568]
[1755244564284,0.06,196.97,196.96,26.0]
[1755244564479,0.06,196.97,196.96,70.00581705]
[1755244564669,0.06,196.97,196.96,70.67581705]
[1755244565561,0.06,196.97,196.96,75.75299008]
[1755244565981,0.06,196.99,196.97,15.10621557]
[1755244566184,0.06,196.99,196.98,67.25784967]
[1755244566388,0.06,197.01,197.0,26.0]
[1755244566601,0.06,197.01,197.0,70.00581705]
[1755244566889,0.2,197.04,197.0,70.67581705]
[1755244567062,0.2,197.04,197.03,8.14581705]
[1755244567267,0.2,197.04,197.03,44.00581705]
[1755244567462,0.2,197.04,197.03,49.08118628]
[1755244572377,8.44,197.04,197.03,49.08118628]
[1755244572681,0.2,197.04,197.03,49.08118628]
[1755244573392,0.2,197.04,197.03,49.75118628]
[1755244573688,8.92,197.08,197.04,15.10621557]
[1755244573996,8.92,197.08,197.07,8.14581705]
[1755244574374,8.24,197.08,197.07,43.98581705]
[1755244574577,8.92,197.1,197.07,43.98581705]
[1755244574794,0.68,197.1,197.09,8.14581705]
[1755244575104,8.98,197.1,197.09,13.21964119]
[1755244575596,8.24,197.09,197.08,8.14581705]
[1755244575801,8.24,197.09,197.04,5.07511165]
[1755244575802,8.24,197.06,197.04,5.07511165]
[1755244576005,8.92,197.05,197.04,5.07511165]
[1755244577102,8.92,197.05,197.04,13.2209287]
[1755244578209,8.24,197.05,197.04,13.2209287]
[1755244579302,8.24,197.06,197.04,13.2209287]
[1755244579507,8.24,197.05,197.04,5.07511165]
[1755244579699,8.92,197.06,197.04,13.2209287]
[1755244579882,8.24,197.06,197.05,13.22067114]
[1755244580786,8.24,197.07,197.05,13.22067114]
[1755244580990,8.24,197.07,197.06,8.14581705]
[1755244581379,8.92,197.07,197.06,8.14581705]
[1755244581891,8.92,197.07,197.06,13.22041361]
[1755244586992,8.24,197.05,196.97,5.07691526]
[1755244587186,8.24,197.02,197.0,8.14581705]
[1755244587408,0.68,197.01,197.0,8.14581705]
[1755244587681,8.24,197.0,196.97,40.89691526]
[1755244587994,8.24,197.0,196.99,8.14581705]
[1755244588196,8.24,197.0,196.97,40.89691526]
[1755244588421,8.92,197.0,196.99,8.14581705]
[1755244588603,8.24,197.0,196.99,8.14581705]
[1755244589212,8.92,197.0,196.99,8.14581705]
[1755244590025,8.92,197.0,196.99,13.22221686]
[1755244590334,8.92,197.0,196.99,5.07639981]
[1755244590623,8.92,197.0,196.99,8.14581705]
[1755244590824,8.92,197.0,196.98,8.14581705]
[1755244591027,0.68,196.99,196.98,8.14581705]
[1755244592118,0.68,196.99,196.98,13.22247457]
[1755244593912,8.24,197.0,196.98,13.22247457]
[1755244594110,8.92,197.0,196.99,8.14581705]
[1755244595816,8.92,197.0,196.99,13.22221686]
[1755244607747,8.24,197.0,196.99,13.22221686]
[1755244608851,8.24,197.02,196.99,13.91221686]
[1755244609152,8.24,197.02,197.01,8.14581705]
[1755244609449,8.24,197.02,197.01,13.22170152]
[1755244609830,8.24,197.02,197.01,5.07588447]
[1755244610035,8.24,197.02,197.01,13.22170152]
[1755244610036,8.92,197.02,197.01,13.22170152]
[1755244611128,0.63429238,197.07,197.01,13.22170152]
[1755244611129,8.87429238,197.07,197.01,39.91170152]
[1755244611344,8.24,197.07,197.06,8.14581705]
[1755244613139,8.24,197.07,197.06,13.22041361]
[1755244613337,0.06,197.08,197.06,13.22041361]
[1755244613338,0.06,197.08,197.06,13.91041361]
[1755244613559,0.06,197.08,197.07,8.83581705]
[1755244613965,8.3,197.08,197.07,8.14581705]
[1755244614451,8.98,197.08,197.07,8.14581705]
[1755244615366,8.98,197.08,197.07,13.22015611]
[1755244616450,8.24,197.06,197.04,5.07511165]
[1755244616662,8.24,197.03,197.02,5.07562683]
[1755244616847,8.24,197.03,197.02,13.22144388]
[1755244617874,8.24,197.04,197.02,13.22144388]
[1755244618067,8.24,197.03,197.02,5.07562683]
[1755244618252,8.24,197.03,197.02,13.22144388]
[1755244620177,8.24,197.04,197.02,13.22144388]
[1755244620349,8.24,197.04,197.03,8.14581705]
[1755244620752,8.91,197.04,197.03,13.22118628]
[1755244621878,8.24,197.03,197.02,8.14581705]
[1755244622079,8.91,197.03,197.02,8.14581705]
[1755244622575,8.24,197.03,197.02,8.14581705]
[1755244622775,8.24,197.03,197.02,13.22144388]
[1755244623751,8.91,197.03,197.02,13.22144388]
[1755244624554,8.24,197.03,197.02,13.22144388]
[1755244624874,8.24,197.03,197.02,13.93144388]
[1755244626158,8.24,197.04,197.02,13.93144388]
[1755244626367,8.24,197.04,197.03,13.22118628]
[1755244629768,8.3,197.04,197.03,13.22118628]
[1755244630097,8.24,197.03,197.02,0.03]
[1755244630268,8.24,197.03,197.02,8.17581705]
[1755244632089,8.24,197.03,197.02,13.25144388]
[1755244637001,8.3,197.04,197.02,13.25144388]
[1755244637210,8.24,197.03,197.02,0.03]
[1755244638510,8.24,197.03,197.02,8.17581705]
[1755244639406,8.24,197.03,197.02,13.25144388]
[1755244640003,8.91,197.03,197.02,13.25144388]
[1755244641907,8.3,197.04,197.02,13.96144388]
[1755244642092,8.3,197.04,197.03,8.14581705]
[1755244642884,8.3,197.04,197.03,8.85581705]
[1755244643083,8.3,197.04,197.03,8.14581705]
[1755244643483,8.97,197.04,197.03,8.14581705]
[1755244643690,8.97,197.04,197.03,13.22118628]
[1755244644207,8.24,197.03,197.02,5.10562683]
[1755244644414,8.91,197.03,197.02,5.10562683]
[1755244645393,8.3,197.04,197.02,13.96144388]
[1755244645599,8.24,197.03,197.02,5.10562683]
[1755244645791,8.24,197.03,197.02,0.03]
[1755244647010,8.24,197.03,197.02,13.96144388]
[1755244647180,8.24,197.03,197.02,13.25144388]
[1755244647612,8.3,197.04,197.02,13.25144388]
[1755244647912,8.3,197.04,197.03,8.14581705]
[1755244649394,8.3,197.04,197.03,13.22118628]
[1755244650017,0.06,197.04,197.03,13.22118628]
[1755244650509,0.06,197.04,197.03,13.93118628]
[1755244650814,0.06,197.04,197.03,13.22118628]
[1755244654327,0.06,197.04,197.03,13.91118628]
[1755244654719,0.06,197.04,197.03,13.22118628]
[1755244656725,0.06,197.04,197.03,5.19190737]
[1755244658813,0.78,197.04,197.03,10.2672766]
[1755244659117,8.3,197.04,197.03,10.2672766]
[1755244663906,9.02,197.04,197.03,5.07536923]
[1755244664221,9.02,197.04,197.03,10.2672766]
[1755244664425,9.02,197.04,197.03,10.2972766]
[1755244664603,9.02,197.04,197.03,13.21980802]
[1755244667246,8.3,197.04,197.03,13.21980802]
[1755244670937,9.02,197.04,197.03,13.21980802]
[1755244671730,9.02,197.04,197.03,0.03]
[1755244676044,8.3,197.04,197.03,8.14443879]
[1755244676247,8.3,197.04,197.03,8.83443879]
[1755244676733,0.06,197.04,197.03,8.83443879]
[1755244676940,8.3,197.04,197.03,8.83443879]
[1755244677143,0.06,197.04,197.03,8.83443879]
[1755244677443,8.3,197.04,197.03,13.90980802]
[1755244677842,8.3,197.04,197.03,13.21980802]
[1755244679453,8.3,197.04,197.03,5.10536923]
[1755244679638,8.3,197.04,197.03,13.21980802]
[1755244681345,8.96,197.04,197.03,13.21980802]
[1755244683246,8.3,197.04,197.03,0.03]
[1755244683554,8.3,197.04,197.03,8.14443879]
[1755244685254,8.3,197.04,197.03,13.21980802]
[1755244685554,8.96,197.04,197.03,13.21980802]
[1755244689958,8.96,197.04,197.03,0.03]
[1755244690661,8.96,197.04,197.03,8.14443879]
[1755244690956,8.3,197.04,197.03,8.14443879]
[1755244691458,8.96,197.04,197.03,8.14443879]
[1755244691953,8.96,197.04,197.03,13.21980802]
[1755244693242,8.96,197.04,197.03,8.14443879]
[1755244693440,8.96,197.04,197.03,0.03]
[1755244695665,38.96,197.04,197.03,0.03]
[1755244699169,8.96,197.04,197.03,0.03]
[1755244699355,9.59438895,197.04,197.03,0.03]
[1755244699670,8.96,197.04,197.03,0.03]
[1755244700750,12.37015395,197.04,197.03,0.03]
[1755244701069,8.96,197.04,197.03,0.03]
[1755244701970,22.63856045,197.04,197.03,0.03]
[1755244702160,52.63856045,197.04,197.03,0.03]
[1755244704473,47.44403298,197.04,197.03,0.03]
[1755244704680,81.56415782,197.04,197.03,0.03]
[1755244706073,82.19854677,197.04,197.03,0.03]
[1755244707875,74.07842193,197.04,197.03,0.03]
[1755244708078,38.93438895,197.04,197.03,8.15012484]
[1755244708277,74.02,197.04,197.03,8.15012484]
[1755244708984,74.68,197.04,197.03,0.03]
[1755244711762,74.02,197.04,197.03,0.03]
[1755244712262,44.02,197.04,197.03,0.03]
[1755244712670,8.3,197.04,197.03,8.84012484]
[1755244713868,8.3,197.04,197.03,13.91549407]
[1755244720188,0.06,197.04,197.03,13.91549407]
[1755244720766,8.3,197.04,197.03,13.91549407]
[1755244722084,0.06,197.04,197.03,13.91549407]
[1755244722296,8.3,197.04,197.03,13.91549407]
[1755244722669,0.06,197.04,197.03,13.91549407]
[1755244722866,8.3,197.04,197.03,13.91549407]
[1755244723292,8.3,197.04,197.03,22.21549407]
[1755244724398,8.3,197.04,197.03,13.91549407]
[1755244727389,0.06,197.04,197.03,13.91549407]
[1755244727594,8.3,197.04,197.03,13.91549407]
[1755244729217,0.06,197.08,197.05,26.0]
[1755244729504,8.3,197.08,197.07,8.12012484]
[1755244729800,8.3,197.08,197.07,8.81012484]
[1755244729978,8.3,197.08,197.07,16.42012484]
[1755244731420,8.3,197.08,197.07,21.4944639]
[1755244732305,0.06,197.08,197.07,22.1844639]
[1755244733979,0.06,197.1,197.07,22.1844639]
[1755244734304,8.3,197.1,197.09,8.12012484]
[1755244734487,8.3,197.1,197.09,13.19394898]
[1755244738306,8.3,197.1,197.09,5.07382414]
[1755244738610,8.3,197.1,197.09,13.19394898]
[1755244739607,8.24,197.09,197.08,18.45002204]
[1755244739789,8.92,197.09,197.08,26.57014688]
[1755244740186,8.92,197.09,197.08,13.19415888]
[1755244740387,8.92,197.09,197.08,8.12012484]
[1755244741284,8.24,197.09,197.08,13.19420643]
[1755244742785,8.24,197.09,197.08,13.90420643]
[1755244743199,0.06,197.1,197.08,13.90420643]
[1755244743394,8.24,197.09,197.08,5.78408159]
[1755244743888,8.24,197.09,197.08,5.07408159]
[1755244744711,8.24,197.09,197.08,13.19420643]
[1755244746009,0.06,197.1,197.08,13.90420643]
[1755244746209,8.3,197.1,197.09,8.12012484]
[1755244748009,8.3,197.1,197.09,13.19394898]
[1755244751728,8.3,197.1,197.09,5.07382414]
[1755244751924,9.0,197.1,197.09,13.19394898]
[1755244752296,8.3,197.1,197.09,13.19394898]
[1755244752595,8.3,197.1,197.09,13.90394898]
[1755244753412,8.3,197.1,197.09,13.19394898]
[1755244754215,1e-08,197.1,197.09,13.90394898]
[1755244754519,1e-08,197.1,197.09,18.00302652]
[1755244754708,1e-08,197.1,197.09,26.30302652]
[1755244756418,1e-08,197.11,197.09,52.30302652]
[1755244756723,1e-08,197.11,197.1,8.83012484]
[1755244757511,1e-08,197.11,197.1,44.49012484]
[1755244757809,1e-08,197.11,197.1,52.79012484]
[1755244758422,1e-08,197.11,197.1,57.86369155]
[1755244759616,9.0,197.15,197.12,26.0]
[1755244759924,9.0,197.15,197.14,8.12012484]
[1755244760427,8.24,197.14,197.12,50.876548]
[1755244760626,8.24,197.14,197.13,8.12012484]
[1755244760800,0.7,197.13,197.12,50.876548]
[1755244761607,0.7,197.13,197.12,55.94959994]
[1755244761814,8.94,197.14,197.12,55.94959994]
[1755244762027,8.94,197.14,197.13,8.12012484]
[1755244762432,8.24,197.14,197.13,8.12012484]
[1755244763133,8.24,197.14,197.13,16.36012484]
[1755244763618,8.24,197.14,197.13,21.43291944]
[1755244765007,8.3,197.15,197.13,21.43291944]
[1755244765331,8.24,197.14,197.13,13.3127946]
[1755244765918,8.94,197.14,197.13,13.3127946]
[1755244766324,8.94,197.14,197.13,5.0727946]
[1755244766632,8.94,197.14,197.13,22.13291944]
[1755244767413,8.94,197.14,197.13,13.19291944]
[1755244767609,0.7,197.14,197.13,13.19291944]
[1755244767932,8.94,197.14,197.13,13.19291944]
[1755244768320,8.94,197.14,197.13,13.3727946]
[1755244768519,8.94,197.14,197.13,13.19291944]
[1755244770426,8.94,197.14,197.13,5.0727946]
[1755244770641,8.94,197.14,197.13,8.12012484]
[1755244772521,8.94,197.14,197.13,13.19291944]
[1755244773233,8.24,197.14,197.13,13.19291944]
[1755244774733,8.95,197.14,197.13,13.19291944]
[1755244775534,8.24,197.14,197.13,13.19291944]
[1755244776537,8.24,197.14,197.13,48.83291944]
[1755244779244,9.01,197.15,197.13,48.83291944]
[1755244779438,8.3,197.15,197.14,8.12012484]
[1755244780331,8.3,197.15,197.14,16.42012484]
[1755244780524,0.06,197.15,197.14,16.42012484]
[1755244780747,0.06,197.15,197.14,17.10012484]
[1755244781346,0.06,197.15,197.14,22.17266212]
[1755244782546,0.06,197.15,197.14,21.49266212]
[1755244783055,0.06,197.15,197.14,22.17266212]
[1755244783718,0.06,197.15,197.14,21.49266212]
[1755244783922,0.06,197.15,197.14,57.11266212]
[1755244784441,0.77,197.15,197.14,57.11266212]
[1755244785043,0.06,197.15,197.14,57.11266212]
[1755244785252,0.06,197.15,197.14,57.79266212]
[1755244785933,0.06,197.15,197.14,57.11266212]
[1755244786534,0.06,197.15,197.14,57.79266212]
[1755244789758,0.06,197.15,197.14,57.11266212]
[1755244792730,0.77,197.15,197.14,54.1780998]
[1755244793039,9.01,197.15,197.14,45.8780998]
[1755244793938,7.63613281,197.15,197.14,45.8780998]
[1755244794754,7.63613281,197.15,197.14,48.79739944]
[1755244795957,8.34613281,197.15,197.14,40.69253728]
[1755244796283,8.34613281,197.15,197.14,48.79739944]
[1755244796441,8.34613281,197.15,197.14,40.69253728]
[1755244796642,8.34613281,197.15,197.14,48.79739944]
[1755244796961,7.63613281,197.14,197.13,13.2076114]
[1755244797339,7.63613281,197.14,197.13,40.72274924]
[1755244797554,8.34613281,197.14,197.13,48.8276114]
[1755244797955,8.34613281,197.14,197.13,13.2076114]
[1755244800061,8.34613281,197.14,197.13,5.10274924]
[1755244800481,8.34613281,197.14,197.13,0.03]
[1755244800947,8.34613281,197.14,197.13,8.13486216]
[1755244801471,8.34613281,197.14,197.13,0.03]
[1755244801969,7.63613281,197.14,197.13,44.41486216]
[1755244802157,0.06,197.15,197.13,44.41486216]
[1755244802350,7.69613281,197.15,197.14,8.76486216]
[1755244802568,0.06,197.15,197.14,8.76486216]
[1755244802945,0.06,197.15,197.14,16.46099516]
[1755244803148,0.06,197.15,197.14,15.80099516]
[1755244803344,0.72,197.15,197.14,8.10486216]
[1755244803578,8.35613281,197.15,197.13,5.10277129]
[1755244803752,7.63613281,197.14,197.13,13.20763345]
[1755244803953,8.29613281,197.14,197.13,13.20763345]
[1755244804361,8.29613281,197.14,197.13,5.10277129]
[1755244804574,8.29613281,197.14,197.13,13.20763345]
[1755244804866,8.29613281,197.14,197.13,0.03]
[1755244805053,11.70971871,197.14,197.13,0.03]
[1755244805673,7.63613281,197.14,197.13,8.13486216]
[1755244805865,8.29613281,197.14,197.13,8.13486216]
[1755244806856,7.63613281,197.14,197.13,8.13486216]
[1755244807065,7.69613281,197.15,197.13,44.43486216]
[1755244807262,0.06,197.15,197.14,8.76486216]
[1755244807466,7.69613281,197.15,197.14,8.76486216]
[1755244807675,0.06,197.15,197.14,13.17739944]
[1755244807981,0.06,197.15,197.14,21.53353144]
[1755244807982,1e-08,197.15,197.14,21.53353144]
[1755244808550,1e-08,197.15,197.14,36.63974701]
[1755244808755,7.69613281,197.17,197.14,36.63974701]
[1755244808756,7.69613281,197.17,197.16,8.10486216]
[1755244809068,7.69613281,197.17,197.16,43.76486216]
[1755244809270,7.69613281,197.17,197.16,44.42486216]
[1755244809574,0.06,197.17,197.16,49.49688488]
[1755244809883,7.69613281,197.17,197.16,49.49688488]
[1755244810282,0.06,197.19,197.16,64.60310045]
[1755244810463,7.69613281,197.21,197.2,26.0]
[1755244810464,0.06,197.21,197.2,26.0]
[1755244810667,8.10486216,197.32,197.2,26.0]
[1755244810668,7.63613281,197.25,197.2,85.57107773]
[1755244810863,7.63613281,197.26,197.24,8.10486216]
[1755244811179,30.0,197.25,197.24,0.66]
[1755244811386,30.0,197.25,197.24,36.36]
[1755244811575,7.63613281,197.28,197.24,41.42996552]
[1755244811785,7.63613281,197.25,197.24,40.76996552]
[1755244811980,7.63613281,197.25,197.24,53.44487933]
[1755244812480,8.29613281,197.25,197.24,48.87482768]
[1755244812687,7.63613281,197.25,197.24,48.87482768]
[1755244813298,7.63613281,197.28,197.24,57.17095968]
[1755244813469,8.29613281,197.3,197.27,8.10486216]
[1755244813661,7.63613281,197.31,197.29,13.17354278]
[1755244813861,7.63613281,197.3,197.29,5.06868062]
[1755244814280,8.29613281,197.3,197.29,5.06868062]
[1755244814472,8.29613281,197.3,197.28,40.76889983]
[1755244814682,8.29613281,197.29,197.28,40.76889983]
[1755244815087,7.63613281,197.3,197.28,48.87376199]
[1755244815296,8.29613281,197.3,197.29,8.10486216]
[1755244815810,7.63613281,197.29,197.28,40.76889983]
[1755244815974,7.63613281,197.29,197.24,7.636132]
[1755244815975,7.63613281,197.25,197.24,7.636132]
[1755244816176,7.63613281,197.25,197.24,20.81095968]
[1755244816177,8.29613281,197.25,197.24,20.81095968]
[1755244816400,8.29613281,197.25,197.24,48.87482768]
[1755244816702,8.29613281,197.25,197.24,13.17482768]
[1755244817014,7.63613281,197.22,197.19,5.07125107]
[1755244817180,7.63613281,197.22,197.21,8.10486216]
[1755244817904,7.63613281,197.22,197.21,13.83559893]
[1755244818312,7.63613281,197.23,197.21,13.83559893]
[1755244818491,7.63613281,197.23,197.22,44.48486216]
[1755244819205,7.63613281,197.23,197.22,43.82486216]
[1755244819383,7.63613281,197.23,197.22,35.72]
[1755244819584,7.63613281,197.23,197.22,8.10486216]
[1755244819779,7.63613281,197.23,197.22,48.89534182]
[1755244820197,7.63613281,197.23,197.22,13.17534182]
[1755244820404,7.63613281,197.23,197.22,48.89534182]
[1755244820607,7.63613281,197.23,197.22,13.17534182]
[1755244820911,7.63613281,197.23,197.22,49.53534182]
[1755244821098,7.63613281,197.23,197.22,48.87534182]
[1755244821410,7.63613281,197.23,197.22,40.79047966]
[1755244821710,7.63613281,197.23,197.22,13.17534182]
[1755244821890,7.63613281,197.23,197.22,48.87534182]
[1755244822096,7.63613281,197.23,197.22,49.53534182]
[1755244822806,7.63613281,197.23,197.22,41.43047966]
[1755244823110,7.63613281,197.23,197.22,48.87534182]
[1755244823412,7.63613281,197.21,197.2,5.07099391]
[1755244823585,7.63613281,197.21,197.2,48.87585607]
[1755244823985,7.63613281,197.21,197.2,49.53585607]
[1755244824711,7.63613281,197.22,197.2,48.87585607]
[1755244824886,7.63613281,197.21,197.2,5.07099391]
[1755244825078,8.29613281,197.21,197.2,48.87585607]
[1755244825488,7.63613281,197.21,197.2,48.87585607]
[1755244826825,7.63613281,197.21,197.2,40.77099391]
[1755244827123,7.63613281,197.21,197.2,48.87585607]
[1755244829492,7.63613281,197.21,197.2,49.53585607]
[1755244829889,7.63613281,197.22,197.2,48.87585607]
[1755244830200,7.63613281,197.22,197.21,8.10486216]
[1755244830397,0.63368143,197.26,197.23,8.10486216]
[1755244830602,0.69358507,197.29,197.23,8.10486216]
[1755244830809,0.69358507,197.29,197.27,8.10486216]
[1755244831009,0.67,197.28,197.24,35.7]
[1755244831209,0.67,197.28,197.24,36.4]
[1755244831399,0.67,197.28,197.25,5.06970849]
[1755244832003,0.67,197.27,197.25,5.06970849]
[1755244832317,0.67,197.27,197.26,8.10486216]
[1755244832693,0.67,197.27,197.25,5.06970849]
[1755244832896,0.67,197.27,197.26,8.10486216]
[1755244833327,0.69358507,197.29,197.26,8.10486216]
[1755244833495,0.67,197.28,197.27,5.0691945]
[1755244834512,0.67,197.28,197.26,5.06937538]
[1755244834708,0.69358507,197.29,197.26,13.17423754]
[1755244835022,0.67,197.27,197.26,13.17423754]
[1755244835206,0.67,197.27,197.26,5.06937538]
[1755244835406,0.67,197.27,197.26,13.17423754]
[1755244835793,0.67,197.27,197.25,5.06970849]
[1755244835988,0.67,197.27,197.26,8.10486216]
[1755244836219,0.69358507,197.29,197.26,8.10486216]
[1755244836220,0.73,197.29,197.26,8.10486216]
[1755244836426,0.67,197.28,197.27,8.10486216]
[1755244836612,1.30361719,197.28,197.27,8.10486216]
[1755244838124,0.67,197.28,197.27,8.10486216]
[1755244838314,0.06,197.29,197.27,8.10486216]
[1755244838498,0.69358507,197.29,197.26,8.10486216]
[1755244838835,1.36358507,197.29,197.25,5.06970849]
[1755244839137,1.36358507,197.29,197.27,8.10486216]
[1755244839336,1.36358507,197.29,197.25,5.76970849]
[1755244839628,1.36358507,197.29,197.27,8.10486216]
[1755244839803,0.69358507,197.29,197.27,8.10486216]
[1755244840004,0.06,197.29,197.27,8.10486216]
[1755244840652,1e-08,197.29,197.28,8.80486216]
[1755244840959,0.06,197.31,197.28,8.80486216]
[1755244841144,0.06,197.31,197.3,8.10486216]
[1755244841451,0.06,197.31,197.3,43.80486216]
[1755244841659,0.06,197.31,197.3,44.50486216]
[1755244842249,0.06,197.31,197.3,49.57328588]
[1755244843227,0.06,197.31,197.3,13.87328588]
[1755244843551,0.06,197.31,197.3,49.61328588]
[1755244844558,1.36352085,197.31,197.26,43.84486216]
[1755244844933,0.67,197.3,197.27,8.10486216]
[1755244845149,1.30358507,197.29,197.27,8.10486216]
[1755244845349,0.06,197.31,197.28,8.80486216]
[1755244845549,0.06,197.31,197.3,8.10486216]
[1755244846058,0.06,197.31,197.3,44.56486216]